fUST/lending_fUST_20251219
["ID","MTS","AMOUNT","RATE_DAILY","PERIOD"]
[399134222,1766123438632,-173.8507958,0.00015579,2]
[399134223,1766123438641,-177.0,0.00015702,2]
[399134224,1766123438650,-193.92877823,0.00015753,7]
[399134225,1766123438660,-999.0,0.00015868,2]
[399134226,1766123438669,-153.44935245,0.00015894,2]
[399134227,1766123438679,-180.54389145,0.00015894,2]
[399134228,1766123438688,-322.46052118,0.00015894,2]
[399134229,1766123438697,-808.21722701,0.00016068,2]
[399134230,1766123438707,-322.46052118,0.00016685,2]
[399134231,1766123438716,-500.0,0.00016716,2]
[399134232,1766123438725,-500.0,0.00016716,2]
[399134233,1766123438735,-720.0,0.00016717,2]
[399134234,1766123438744,-153.6028018,0.00017477,2]
[399134235,1766123438754,-180.72443534,0.00017477,2]
[399134236,1766123438764,-322.7829817,0.00017477,2]
[399134237,1766123438773,-169.620056,0.00017488,2]
[399134238,1766123438783,-808.21722701,0.00017565,2]
[399134239,1766123438792,-191.741,0.00017565,2]
[399134240,1766123438802,-280.9140599,0.00017701,2]
[399134241,1766123438812,-204.0,0.00017702,2]
[399134242,1766123438821,-500.0,0.00017868,2]
[399134243,1766123438831,-178.77002829,0.00018111,2]
[399134244,1766123438841,-2000.0,0.00018245,2]
[399134245,1766123438850,-239.62433265,0.00018262,2]
[399134246,1766123438861,-864.0,0.00018388,2]
[399134247,1766123438870,-312.93143244,0.00018692,2]
[399134248,1766123438879,-337.55352009,0.00019061,2]
[399134249,1766123438889,-808.21722701,0.00019062,2]
[399134251,1766123438899,-500.0,0.00019577,2]
[399134253,1766123438908,-500.0,0.00019577,2]
[399134254,1766123438917,-277.14526606,0.00019577,2]
[399134256,1766123438927,-206.92578335,0.00019577,2]
[399134258,1766123438936,-320.91675019,0.00019577,2]
[399134268,1766123439033,-500.0,0.00019577,2]
[399134271,1766123439043,-500.0,0.00019577,2]
[399134273,1766123439053,-35714.32,0.00019578,3]
[399134275,1766123439062,-231.0,0.00019702,2]
[399134277,1766123439072,-151.0,0.00019878,2]
[399134279,1766123439081,-333.51807,0.00019878,2]
[399134281,1766123439092,-333.51807,0.00019878,2]
[399134283,1766123439102,-333.51807,0.00019878,2]
[399134284,1766123439112,-333.51807,0.00019878,2]
[399134287,1766123439122,-1653.278283,0.00019878,2]
[399134288,1766123439131,-1653.278283,0.00019878,2]
[399134290,1766123439141,-1653.278283,0.00019878,2]
[399134292,1766123439150,-1653.278283,0.00019878,2]
[399134294,1766123439160,-151.0,0.00019879,2]
[399134296,1766123439170,-151.0,0.00019879,2]
[399134298,1766123439179,-151.0,0.00019879,2]
[399134300,1766123439188,-171.151724,0.00019879,2]
[399134302,1766123439198,-191.029062,0.00019879,2]
[399134304,1766123439208,-333.51807,0.00019879,2]
[399134306,1766123439217,-333.51807,0.00019879,2]
[399134308,1766123439226,-333.51807,0.00019879,2]
[399134310,1766123439236,-333.51807,0.00019879,2]
[399134312,1766123439245,-1653.278283,0.00019879,2]
[399134314,1766123439255,-1653.278283,0.00019879,2]
[399134316,1766123439264,-1653.278283,0.00019879,2]
[399134318,1766123439275,-1653.278283,0.00019879,2]
[399134320,1766123439284,-1000.0,0.00019879,2]
[399134322,1766123439294,-1000.0,0.00019879,2]
[399134324,1766123439304,-1044.86165545,0.00019879,2]
[399134327,1766123439314,-574.12855637,0.00019879,2]
[399134329,1766123439323,-1232.40912724,0.00019879,2]
[399134331,1766123439336,-529.46489486,0.00019879,2]
[399134683,1766123442999,-500.0,0.00015966,2]
[399134980,1766123447595,-15.33,0.00015966,2]
[399134981,1766123447605,-572.59,0.00016516,2]
[399134982,1766123447616,-16.097359,0.00019879,2]
[399134983,1766123463974,500.0,0.00013273,2]
[399134984,1766123464048,500.0,0.00013273,2]
[399134985,1766123467233,500.0,0.00013273,2]
[399134986,1766123467818,475.32907219,0.00013273,2]
[399134987,1766123467843,133.16168538,0.00013273,2]
[399134988,1766123468393,153.12132111,0.00013273,2]
[399134989,1766123481818,500.0,0.00013273,2]
[399134990,1766123488239,209.45784387,0.00013273,2]
[399134992,1766123491989,-500.0,0.00013699,2]
[399134993,1766123492048,-582.32112419,0.00013821,2]
[399134994,1766123492109,-996.43275198,0.00013821,2]
[399134995,1766123492164,-500.0,0.00013821,2]
[399134996,1766123513425,150.0,0.00012245,2]
[399134997,1766123513831,150.0,0.00012828,2]
[399134998,1766123514239,150.0,0.00013411,2]
[399134999,1766123514669,150.0,0.00013994,2]
[399135000,1766123523294,518.29820109,0.00013273,2]
[399135001,1766123582558,150.0,0.00012991,2]
[399135002,1766123582974,150.0,0.0001361,2]
[399135003,1766123588023,500.0,0.00013273,2]
[399135004,1766123588072,426.62035546,0.00013821,2]
[399135005,1766123608552,500.0,0.00013699,2]
[399135006,1766123635785,-150.0,0.00014228,2]
[399135007,1766123635824,-500.0,0.00014246,2]
[399135008,1766123635864,-150.0,0.00014847,2]
[399135009,1766123635991,-500.0,0.00014916,2]
[399135010,1766123645127,500.0,0.00013273,2]
[399135011,1766123645164,346.2828821,0.00013821,2]
[399135012,1766123645549,356.76668823,0.00013273,2]
[399135013,1766123708191,500.0,0.00013273,2]
[399135014,1766123708224,500.0,0.00013273,2]
[399135016,1766123720649,-500.0,0.00013699,2]
[399135021,1766123784016,-1000.0,0.00013821,2]
[399135022,1766123784057,-1000.0,0.00013821,2]
[399135023,1766123784100,-500.0,0.00014246,2]
[399135028,1766123860759,249.60175748,0.00014368,2]
[399135033,1766123904542,-339.98,0.00014246,2]
[399135034,1766123904581,-462.10534614,0.00015,2]
[399135045,1766123944415,500.0,0.00013273,2]
[399135046,1766123944455,404.04268141,0.00013273,2]
[399135047,1766123944494,1000.0,0.00013821,2]
[399135061,1766124039474,-150.0,0.00015159,2]
[399135062,1766124039512,-530.0,0.000152,2]
[399135221,1766124497251,-150.0,0.00016962,2]
[399135222,1766124497288,-1000.0,0.00018034,2]
[399135224,1766124513436,-157.730477,0.00018297,2]
[399135225,1766124513472,-822.0,0.0001866,2]
[399135226,1766124513510,-14213.73841312,0.00018661,2]
[399135227,1766124513549,-177.0,0.00018962,2]
[399135228,1766124513588,-774.648179,0.00018999,2]
[399135229,1766124513626,-280.9140599,0.0001937,2]
[399135230,1766124513666,-176.32941394,0.00019393,2]
[399135231,1766124513705,-704.61233809,0.00019393,2]
[399135232,1766124513744,-185.0051009,0.0001953,2]
[399135233,1766124513783,-500.0,0.00019577,2]
[399135234,1766124513826,-600.0,0.00019709,2]
[399135235,1766124513864,-574.12855637,0.00019868,2]
[399135236,1766124513902,-250.0,0.00019868,2]
[399135237,1766124513940,-250.0,0.00019868,2]
[399135238,1766124513978,-250.0,0.00019868,2]
[399135239,1766124514015,-250.0,0.00019868,2]
[399135240,1766124514051,-250.0,0.00019868,2]
[399135241,1766124514265,-250.0,0.00019868,2]
[399135242,1766124514303,-250.0,0.00019868,2]
[399135243,1766124514340,-250.0,0.00019868,2]
[399135244,1766124514447,-250.0,0.00019868,2]
[399135245,1766124514485,-250.0,0.00019868,2]
[399135246,1766124514521,-250.0,0.00019868,2]
[399135247,1766124514556,-500.0,0.00019879,2]
[399135248,1766124514592,-189.389,0.00019879,2]
[399135249,1766124514629,-7505.74739082,0.000199,2]
[399135250,1766124514668,-300.0,0.00019969,2]
[399135251,1766124514712,-300.0,0.00019969,2]
[399135252,1766124514753,-300.0,0.00019969,2]
[399135253,1766124514791,-300.0,0.00019969,2]
[399135254,1766124514832,-300.0,0.00019969,2]
[399135255,1766124514870,-300.0,0.00019969,2]
[399135256,1766124514908,-300.0,0.00019969,2]
[399135257,1766124514945,-300.0,0.00019969,2]
[399135258,1766124514983,-300.0,0.00019969,2]
[399135259,1766124515023,-300.0,0.00019969,2]
[399135260,1766124515063,-300.0,0.00019969,2]
[399135261,1766124515109,-300.0,0.00019969,2]
[399135262,1766124515149,-300.0,0.00019969,2]
[399135263,1766124515188,-300.0,0.00019969,2]
[399135264,1766124515226,-300.0,0.00019969,2]
[399135265,1766124515263,-151.30332686,0.0002,2]
[399135266,1766124521032,3164.87,0.00015,10]
[399135294,1766124620376,396.61808459,0.00019393,2]
[399135336,1766124632254,-239.75418,0.00020187,2]
[399135338,1766124632264,-150.0,0.00020301,2]
[399135339,1766124632274,-453.11655516,0.00020315,2]
[399135340,1766124632285,-264.12,0.00020415,2]
[399135341,1766124632294,-328.28158318,0.00020687,2]
[399135372,1766124638198,-33.1205039,0.00020687,2]
[399135374,1766124638207,-500.0,0.00020688,2]
[399135376,1766124638217,-362.84,0.00020689,2]
[399135377,1766124638226,-293.0394961,0.0002069,3]
[399135380,1766124638237,-3371.9505039,0.0002069,3]
[399135382,1766124638246,-1832.49,0.0002069,3]
[399135384,1766124638255,-916.25,0.0002069,3]
[399135385,1766124638264,-277.31821014,0.0002069,3]
[399135387,1766124638275,-180.80178986,0.0002069,3]
[399135389,1766124638285,-229.06,0.0002069,3]
[399135391,1766124638294,-687.22,0.0002069,3]
[399135393,1766124638303,-494.84804834,0.00020699,2]
[399135395,1766124638312,-500.0,0.00020699,2]
[399135397,1766124638322,-194.00168624,0.00020699,2]
[399135398,1766124638331,-500.0,0.00020699,2]
[399135400,1766124638340,-274.64172513,0.00020699,2]
[399135402,1766124638349,-152.509761,0.000207,2]
[399135404,1766124638358,-151.0,0.000207,2]
[399135406,1766124638368,-151.0,0.000207,2]
[399135408,1766124638377,-151.0,0.000207,2]
[399135410,1766124638387,-991.96697,0.000207,2]
[399135412,1766124638395,-82.17599739,0.000207,2]
[399135440,1766124638656,-909.79097261,0.000207,2]
[399135442,1766124638666,-991.96697,0.000207,2]
[399135444,1766124638676,-991.96697,0.000207,2]
[399135446,1766124638686,-151.0,0.000207,2]
[399135448,1766124638695,-1736.230056,0.000207,2]
[399135450,1766124638705,-1736.230056,0.000207,2]
[399135452,1766124638715,-1736.230056,0.000207,2]
[399135454,1766124638726,-1736.230056,0.000207,2]
[399135456,1766124638736,-226.413767,0.000207,2]
[399135458,1766124638746,-226.413767,0.000207,2]
[399135460,1766124638757,-226.413767,0.000207,2]
[399135462,1766124638768,-226.413767,0.000207,2]
[399135464,1766124638778,-151.0,0.000207,2]
[399135466,1766124638787,-219.318143,0.000207,2]
[399135468,1766124638797,-219.318143,0.000207,2]
[399135470,1766124638806,-219.318143,0.000207,2]
[399135472,1766124638816,-219.318143,0.000207,2]
[399135474,1766124638826,-47880.53662723,0.000207,3]
[399135598,1766124640434,-1570.23052842,0.000207,3]
[399135959,1766124643902,-11773.71284435,0.000207,3]
[399135961,1766124643912,-323.25397572,0.00020739,2]
[399135963,1766124643921,-943.16138466,0.000209,2]
[399135965,1766124643931,-30493.37179527,0.000209,3]
[399138083,1766124709100,204.3710965,0.00019149,2]
[399138102,1766124754427,578.9776594,0.00016033,5]
[399138103,1766124755837,205.0545877,0.00017288,2]
[399138104,1766124757092,820.21835082,0.00018043,2]
[399138105,1766124759265,2315.91063761,0.0001833,5]
[399138106,1766124761450,1845.49128934,0.00018798,2]
[399138107,1766124788851,-500.0,0.00013273,2]
[399138108,1766124803388,-500.0,0.00013273,2]
[399138109,1766124909542,-565.18167476,0.0001314,2]
[399138110,1766124913404,-500.0,0.0001314,2]
[399138111,1766124914907,-500.0,0.0001314,2]
[399138112,1766124918885,-500.0,0.0001314,2]
[399138114,1766124920402,-500.0,0.0001314,2]
[399138115,1766124922383,-300.0,0.0001314,2]
[399138116,1766124926657,-184.13430308,0.0001314,2]
[399138117,1766124929319,-224.76063011,0.0001314,2]
[399138118,1766124933189,-206.07809572,0.0001314,2]
[399138119,1766124938386,-404.92190428,0.0001314,2]
[399138120,1766124942733,-189.82149683,0.0001314,2]
[399138121,1766124944228,-238.97963543,0.0001314,2]
[399138122,1766124976159,-8.35123064,0.0001314,2]
[399138124,1766125208400,-378.57011044,0.00013206,2]
[399138125,1766125222528,461.57,0.0001314,2]
[399138126,1766125279473,-228.42988956,0.00013206,2]
[399138127,1766125279506,-150.0,0.00013206,2]
[399138128,1766125279558,-300.0,0.00013272,2]
[399138129,1766125279611,-500.0,0.00013273,2]
[399138130,1766125279661,-368.21163596,0.00013273,2]
[399138131,1766125279709,-500.0,0.00013273,2]
[399138132,1766125279753,-500.0,0.00013273,2]
[399138133,1766125279799,-418.54276284,0.00013273,2]
[399138134,1766125279842,-300.0,0.00013673,2]
[399138135,1766125279888,-194.0,0.00013698,2]
[399138136,1766125279930,-290.643767,0.00013699,2]
[399138137,1766125279975,-500.0,0.00013699,2]
[399138138,1766125280019,-500.0,0.00013699,2]
[399138139,1766125280061,-0.35388928,0.00013699,2]
[399138140,1766125294480,-500.0,0.00013273,2]
[399138141,1766125294513,-314.5487623,0.00013673,2]
[399138142,1766125294543,-499.64611072,0.00013699,2]
[399138143,1766125294574,-500.0,0.00013699,2]
[399138144,1766125294604,-500.0,0.00013699,2]
[399138145,1766125294634,-500.0,0.00013699,2]
[399138146,1766125294786,-500.0,0.00013699,2]
[399138147,1766125294820,-500.0,0.00013699,2]
[399138148,1766125294851,-500.0,0.00013699,2]
[399138149,1766125294883,-500.0,0.00013699,2]
[399138150,1766125294920,-150.0,0.00013757,2]
[399138151,1766125303997,-1000.0,0.00013821,2]
[399138152,1766125304031,-1000.0,0.00013821,2]
[399138153,1766125304066,-1000.0,0.00013821,2]
[399138154,1766125304102,-300.0,0.00014096,2]
[399138155,1766125304138,-300.0,0.00014096,2]
[399138156,1766125304172,-300.0,0.00014096,2]
[399138157,1766125304207,-300.0,0.00014096,2]
[399138158,1766125304241,-300.0,0.00014096,2]
[399138159,1766125304276,-300.0,0.00014096,2]
[399138160,1766125304312,-100.01,0.00014096,2]
[399138161,1766125314278,-199.99,0.00014096,2]
[399138162,1766125314314,-300.0,0.00014096,2]
[399138163,1766125314349,-300.0,0.00014096,2]
[399138164,1766125314383,-300.0,0.00014096,2]
[399138165,1766125314415,-300.0,0.00014096,2]
[399138166,1766125314450,-300.0,0.00014096,2]
[399138167,1766125314483,-300.0,0.00014096,2]
[399138168,1766125314516,-300.0,0.00014096,2]
[399138169,1766125314549,-300.0,0.00014096,2]
[399138170,1766125316026,4800.03,0.00013955,2]
[399138171,1766125317070,-199.97,0.00013955,2]
[399138173,1766125324798,150.0,0.00013865,2]
[399138179,1766125387253,500.0,0.00013699,2]
[399138180,1766125390062,500.0,0.00013273,2]
[399138181,1766125390112,549.80355787,0.00013821,2]
[399138182,1766125390770,150.0,0.00013761,2]
[399138183,1766125391212,500.0,0.00013273,2]
[399138184,1766125391263,726.08505886,0.00013821,2]
[399138185,1766125405976,500.0,0.00013273,2]
[399138186,1766125406008,500.0,0.00013699,2]
[399138187,1766125406041,500.01,0.00013821,2]
[399138188,1766125406973,500.0,0.00013699,2]
[399138189,1766125454283,500.0,0.00013699,2]
[399138190,1766125455866,150.0,0.00013608,2]
[399138205,1766125503302,500.0,0.00013699,2]
[399138206,1766125503357,415.8501067,0.00013699,2]
[399138207,1766125522782,150.0,0.00013608,2]
[399138208,1766125527958,500.0,0.00013699,2]
[399138209,1766125528523,500.0,0.00013699,2]
[399138210,1766125565095,500.0,0.00013699,2]
[399138211,1766125572641,500.0,0.00013699,2]
[399138212,1766125586796,150.0,0.00013614,2]
[399138213,1766125587988,-531.20766918,0.00014247,2]
[399138214,1766125588027,-150.0,0.00014251,2]
[399138215,1766125588069,-150.0,0.00014256,2]
[399138216,1766125588108,-300.0,0.00014654,2]
[399138217,1766125588150,-300.0,0.00014655,2]
[399138218,1766125588194,-300.0,0.00014655,2]
[399138219,1766125588235,-300.0,0.00014655,2]
[399138220,1766125588275,-300.0,0.00014655,2]
[399138221,1766125588318,-300.0,0.00014655,2]
[399138222,1766125588359,-300.0,0.00014655,2]
[399138223,1766125588399,-300.0,0.00014655,2]
[399138224,1766125588442,-300.0,0.00014655,2]
[399138225,1766125588484,-300.0,0.00014655,2]
[399138226,1766125588525,-300.0,0.00014655,2]
[399138227,1766125588566,-300.0,0.00014655,2]
[399138228,1766125588607,-300.0,0.00014655,2]
[399138229,1766125588647,-300.0,0.00014655,2]
[399138230,1766125588755,-300.0,0.00014655,2]
[399138231,1766125588798,-300.0,0.00014655,2]
[399138232,1766125588844,-150.0,0.00014904,2]
[399138233,1766125588885,-150.0,0.00015552,2]
[399138234,1766125588924,-235.7416748,0.00015578,2]
[399138235,1766125588969,-150.0,0.000162,2]
[399138236,1766125589009,-177.0,0.00016251,2]
[399138237,1766125589047,-574.12855637,0.00016846,2]
[399138238,1766125589088,-250.0,0.00016846,2]
[399138239,1766125589126,-250.0,0.00016846,2]
[399138240,1766125589164,-250.0,0.00016846,2]
[399138241,1766125589203,-250.0,0.00016846,2]
[399138242,1766125589242,-250.0,0.00016846,2]
[399138243,1766125589282,-250.0,0.00016846,2]
[399138244,1766125589321,-250.0,0.00016846,2]
[399138245,1766125589361,-250.0,0.00016846,2]
[399138246,1766125589399,-250.0,0.00016846,2]
[399138247,1766125589440,-250.0,0.00016846,2]
[399138248,1766125589479,-250.0,0.00016846,2]
[399138249,1766125589524,-150.0,0.00016856,2]
[399138250,1766125589563,-595.37131296,0.00017394,2]
[399138251,1766125589602,-169.620056,0.00017852,2]
[399138252,1766125589639,-617.40005154,0.00017942,2]
[399138253,1766125589679,-204.0,0.00018251,2]
[399138254,1766125589719,-640.24385345,0.0001849,2]
[399138255,1766125589758,-663.93287602,0.00019038,2]
[399138256,1766125589797,-529.0920607,0.00019553,2]
[399138257,1766125589836,-3277.59252987,0.00019577,2]
[399138258,1766125589874,-215.66566274,0.00019577,2]
[399138259,1766125589913,-688.49839244,0.00019586,2]
[399138260,1766125589952,-500.0,0.000199,2]
[399138261,1766125590073,-600.0,0.00019944,2]
[399138262,1766125612837,-713.97283296,0.00020134,2]
[399138263,1766125612875,-181.837,0.00020187,2]
[399138264,1766125612913,-290.643767,0.00020187,2]
[399138265,1766125612951,-231.0,0.00020251,2]
[399138266,1766125612990,-284.1712262,0.0002064,5]
[399138267,1766125613032,-8748.2744175,0.00020658,2]
[399138268,1766125613074,-754.52910776,0.00020658,2]
[399138269,1766125613114,-740.38982778,0.00020682,2]
[399138270,1766125613154,-1549.296358,0.00020688,2]
[399138271,1766125613193,-329.64,0.0002069,10]
[399138272,1766125613235,-274.7,0.0002069,10]
[399138273,1766125613418,-51.4676456,0.00020699,2]
[399138274,1766125618326,-98.5323544,0.00020699,2]
[399138275,1766125618363,-300.0,0.00020699,2]
[399138276,1766125618400,-450.0,0.00020699,2]
[399138277,1766125618437,-600.0,0.00020699,2]
[399138278,1766125618474,-750.0,0.00020699,2]
[399138279,1766125618513,-828.91685803,0.00020699,2]
[399138280,1766125618550,-346.39363384,0.00020699,2]
[399138281,1766125618589,-500.0,0.00020699,2]
[399138282,1766125618743,-392.24920759,0.00020699,2]
[399138283,1766125618917,-19716.19261228,0.000207,3]
[399138284,1766125623542,500.0,0.00013273,2]
[399138285,1766125625080,500.0,0.00013821,2]
[399138286,1766125626856,500.0,0.00013699,2]
[399138287,1766125626886,500.0,0.00013699,2]
[399138288,1766125629227,-67832.27559245,0.000207,3]
[399138289,1766125629267,-2472.46625095,0.00020707,2]
[399138290,1766125629307,-624.16066049,0.00020758,2]
[399138291,1766125629345,-387.80999474,0.00020824,2]
[399138292,1766125629383,-228.91,0.0002098,10]
[399138293,1766125629420,-2366.97,0.0002099,3]
[399138294,1766125629456,-1183.48,0.0002099,3]
[399138295,1766125629494,-591.74,0.0002099,3]
[399138296,1766125629533,-295.87,0.0002099,3]
[399138297,1766125629569,-887.64,0.0002099,3]
[399138298,1766125629696,-15130.58379297,0.00021,2]
[399138299,1766125629732,-50000.0,0.00021,2]
[399138300,1766125629768,-151.0,0.00021,2]
[399138301,1766125629806,-160.805106,0.00021,2]
[399138302,1766125629843,-151.0,0.00021,2]
[399138303,1766125629879,-151.0,0.00021,2]
[399138304,1766125629916,-151.0,0.00021,2]
[399138305,1766125629954,-200.110842,0.00021,2]
[399138306,1766125629993,-200.110842,0.00021,2]
[399138307,1766125630031,-200.110842,0.00021,2]
[399138308,1766125630071,-200.110842,0.00021,2]
[399138309,1766125630110,-200.110842,0.00021,2]
[399138310,1766125630151,-200.110842,0.00021,2]
[399138311,1766125630190,-200.110842,0.00021,2]
[399138312,1766125630234,-200.110842,0.00021,2]
[399138313,1766125630271,-753.894897,0.00021,2]
[399138314,1766125630308,-753.894897,0.00021,2]
[399138315,1766125630346,-753.894897,0.00021,2]
[399138316,1766125630382,-753.894897,0.00021,2]
[399138317,1766125630421,-753.894897,0.00021,2]
[399138318,1766125630461,-753.894897,0.00021,2]
[399138319,1766125630497,-753.894897,0.00021,2]
[399138320,1766125630533,-753.894897,0.00021,2]
[399138321,1766125630570,-181.131014,0.00021,2]
[399138322,1766125630606,-181.131014,0.00021,2]
[399138323,1766125630643,-181.131014,0.00021,2]
[399138324,1766125630680,-181.131014,0.00021,2]
[399138325,1766125630718,-181.131014,0.00021,2]
[399138326,1766125630755,-181.131014,0.00021,2]
[399138327,1766125630791,-181.131014,0.00021,2]
[399138328,1766125630827,-181.131014,0.00021,2]
[399138329,1766125630862,-175.454514,0.00021,2]
[399138330,1766125630899,-175.454514,0.00021,2]
[399138331,1766125630935,-175.454514,0.00021,2]
[399138332,1766125630972,-175.454514,0.00021,2]
[399138333,1766125631010,-175.454514,0.00021,2]
[399138334,1766125631047,-175.454514,0.00021,2]
[399138335,1766125631084,-175.454514,0.00021,2]
[399138336,1766125631120,-175.454514,0.00021,2]
[399138337,1766125631155,-185.20971,0.00021,2]
[399138338,1766125631279,-185.20971,0.00021,2]
[399138339,1766125631316,-185.20971,0.00021,2]
[399138340,1766125631354,-185.20971,0.00021,2]
[399138341,1766125631391,-185.20971,0.00021,2]
[399138342,1766125631430,-185.20971,0.00021,2]
[399138343,1766125631476,-185.20971,0.00021,2]
[399138344,1766125631532,-185.20971,0.00021,2]
[399138345,1766125631574,-217.480164,0.00021,2]
[399138346,1766125631627,-1388.984045,0.00021,2]
[399138347,1766125631683,-1388.984045,0.00021,2]
[399138348,1766125631723,-1388.984045,0.00021,2]
[399138349,1766125631763,-1388.984045,0.00021,2]
[399138350,1766125631803,-17509.68,0.000212,3]
[399138351,1766125631847,-767.7842514,0.0002123,2]
[399138352,1766125631886,-17509.68,0.0002139,3]
[399138353,1766125631928,-753.894897,0.0002139,2]
[399138354,1766125631970,-753.894897,0.0002139,2]
[399138355,1766125632013,-753.894897,0.0002139,2]
[399138356,1766125632054,-753.894897,0.0002139,2]
[399138357,1766125632097,-181.131014,0.0002139,2]
[399138358,1766125632142,-181.131014,0.0002139,2]
[399138359,1766125632184,-181.131014,0.0002139,2]
[399138360,1766125632233,-181.131014,0.0002139,2]
[399138361,1766125632273,-175.454514,0.0002139,2]
[399138362,1766125632311,-175.454514,0.0002139,2]
[399138363,1766125632350,-175.454514,0.0002139,2]
[399138364,1766125632387,-175.454514,0.0002139,2]
[399138365,1766125632424,-185.20971,0.0002139,2]
[399138366,1766125632462,-185.20971,0.0002139,2]
[399138367,1766125632499,-185.20971,0.0002139,2]
[399138368,1766125632536,-185.20971,0.0002139,2]
[399138369,1766125632573,-1388.984045,0.0002139,2]
[399138370,1766125632613,-1388.984045,0.0002139,2]
[399138371,1766125632650,-1388.984045,0.0002139,2]
[399138372,1766125632687,-1388.984045,0.0002139,2]
[399138373,1766125633268,190.76,0.0002099,10]
[399138374,1766125633565,500.0,0.00013699,2]
[399138375,1766125633622,1000.0,0.00014247,2]
[399138376,1766125633858,300.0,0.00021113,10]
[399138377,1766125634310,300.0,0.00021113,10]
[399138378,1766125634569,300.0,0.00021113,10]
[399138379,1766125634805,300.0,0.00021113,10]
[399138380,1766125635035,300.0,0.00021113,10]
[399138381,1766125635203,300.0,0.00021113,10]
[399138382,1766125635249,300.0,0.00021113,10]
[399138383,1766125635328,300.0,0.00021113,10]
[399138384,1766125635379,300.0,0.00021113,10]
[399138385,1766125635442,300.0,0.00021113,10]
[399138386,1766125643937,189.3060942,0.00013699,2]
[399138388,1766125649507,500.0,0.00013699,2]
[399138389,1766125672438,341.236638,0.000212,2]
[399138390,1766125672726,341.236638,0.0002139,2]
[399138391,1766125673905,341.236638,0.000212,2]
[399138392,1766125674195,341.236638,0.0002139,2]
[399138393,1766125675225,20134.88069042,0.00018,5]
[399138394,1766125675366,341.236638,0.000212,2]
[399138395,1766125675784,341.236638,0.0002139,2]
[399138396,1766125677009,341.236638,0.000212,2]
[399138397,1766125677302,341.236638,0.0002139,2]
[399138398,1766125687697,500.0,0.00013699,2]
[399138399,1766125710904,306.136966,0.00015,2]
[399138400,1766125743995,628.07885271,0.00013699,2]
[399138401,1766125744086,219.77722315,0.00013699,2]
[399138402,1766125752256,2000.0,0.00021389,2]
[399138441,1766125832208,-562.37985189,0.000214,2]
[399138493,1766125838465,-343.85325843,0.000214,2]
[399138495,1766125838475,-323.25397572,0.00021424,2]
[399138497,1766125838484,-303.01964752,0.000215,2]
[399138503,1766125838523,-2720.96378097,0.000215,2]
[399138696,1766125840696,-3e-08,0.000215,2]
[399138699,1766125840708,-9798.06731407,0.000215,2]
[399138702,1766125840726,-151.0,0.000215,2]
[399138704,1766125840737,-754.52910772,0.00021519,2]
[399138706,1766125840746,-175.454514,0.00021535,2]
[399138708,1766125840755,-175.454514,0.00021535,2]
[399138710,1766125840764,-175.454514,0.00021535,2]
[399138712,1766125840774,-175.454514,0.00021535,2]